bitfinex-derivatives/quotes_BNBF0:USTF0_20250715
["timestamp","ask_amount","ask_price","bid_price","bid_amount"]
[1752596943477,0.98290556,683.81,683.21,0.97858195]
[1752596945573,0.98290556,683.57,682.88,0.97858195]
[1752596946276,0.98290556,683.57,682.75,1.3048259]
[1752596946277,0.98290556,683.55,682.85,0.97858195]
[1752596946475,0.98290556,683.55,682.59,1.9572389]
[1752596946476,0.98290556,683.58,682.82,0.97858195]
[1752596947274,0.98290556,683.58,682.81,0.97858195]
[1752596947477,0.98290556,683.6,682.78,0.97858195]
[1752596948475,0.98290556,683.62,682.76,0.97858195]
[1752596949177,0.98290556,683.62,682.75,0.97858195]
[1752596949377,0.98290556,683.64,682.73,0.97858195]
[1752596950474,0.98290556,683.65,682.71,0.97858195]
[1752596951475,0.98290556,683.66,682.69,0.97858195]
[1752596952681,0.98290556,683.68,682.67,0.97858195]
[1752596952882,0.98290556,683.65,682.69,0.97858195]
[1752596953079,0.98290556,683.66,682.68,0.97858195]
[1752596953581,0.98290556,683.66,682.66,0.97858195]
[1752596953879,0.98290556,683.67,682.65,0.97858195]
[1752596954076,1.3127389,683.81,682.65,0.97858195]
[1752596954077,0.98290556,683.68,682.65,0.97858195]
[1752596954277,0.98290556,683.68,682.64,0.97858195]
[1752596955178,0.98290556,683.68,682.63,0.97858195]
[1752596955381,0.98290556,683.69,682.62,0.97858195]
[1752596955880,0.98290556,683.67,682.6,0.97858195]
[1752596956078,0.98290556,683.65,682.59,0.97858195]
[1752596956382,0.98290556,683.63,682.55,0.97858195]
[1752596956582,0.98290556,683.65,682.52,0.97858195]
[1752596956882,0.25442409,684.33,682.44,0.97858195]
[1752596956883,0.98290556,683.56,682.44,0.97858195]
[1752596957182,0.98290556,683.56,682.43,0.97858195]
[1752596957483,0.98290556,683.58,682.41,0.97858195]
[1752596957784,0.98290556,683.69,682.34,0.97858195]
[1752596957984,0.98290556,683.68,682.34,0.97858195]
[1752596958182,0.98290556,683.69,682.34,0.97858195]
[1752596958385,0.98290556,683.7,682.32,0.97858195]
[1752596959384,0.98290556,683.67,682.26,0.97858195]
[1752596959781,0.98290556,683.68,682.27,0.97858195]
[1752596960487,0.98290556,683.69,682.25,0.97858195]
[1752596961187,0.98290556,683.7,682.25,0.97858195]
[1752596961387,0.25442409,684.33,682.24,0.97858195]
[1752596961388,0.98290556,683.71,682.24,0.97858195]
[1752596961788,0.98290556,683.7,682.23,0.97858195]
[1752596962088,0.98290556,683.7,682.22,0.97858195]
[1752596962286,0.98290556,683.7,682.23,0.97858195]
[1752596962485,0.98290556,683.73,682.23,0.97858195]
[1752596963389,0.98290556,683.74,682.22,0.97858195]
[1752596963590,0.98290556,683.73,682.22,0.97858195]
[1752596963991,0.98290556,683.69,682.18,0.97858195]
[1752596964291,0.98290556,683.67,682.16,0.97858195]
[1752596964491,0.98290556,683.68,682.15,1.23323411]
[1752596965087,0.98290556,683.67,682.16,0.97858195]
[1752596965491,0.98290556,683.68,682.15,1.23323411]
[1752596966493,0.98290556,683.69,682.15,0.25465216]
[1752596966891,0.98290556,683.69,682.21,0.97858195]
[1752596966892,0.98290556,683.57,682.21,0.97858195]
[1752596967394,0.98290556,683.58,682.21,0.97858195]
[1752596968095,0.98290556,683.58,682.2,0.97858195]
[1752596968495,0.98290556,683.59,682.2,0.97858195]
[1752596968695,0.98290556,683.58,682.2,0.97858195]
[1752596969694,0.98290556,683.6,682.18,0.97858195]
[1752596969995,0.98290556,683.6,682.17,0.97858195]
[1752596970495,0.98290556,683.61,682.17,0.97858195]
[1752596970695,0.97333496,683.62,682.18,0.97216576]
[1752596971196,0.97333496,683.62,682.15,0.25465216]
[1752596971197,0.97333496,683.64,682.2,0.97216576]
[1752596971598,0.97333496,683.64,682.19,0.97216576]
[1752596972601,0.97333496,683.63,682.2,0.97216576]
[1752596972898,0.97333496,683.63,682.19,0.97216576]
[1752596974401,0.97333496,683.7,682.15,1.22681792]
[1752596976206,0.97333496,683.69,682.15,1.22681792]
[1752596976405,0.97333496,683.7,682.15,1.22681792]
[1752596977007,0.97333496,683.75,682.2,0.97216576]
[1752596977205,0.97333496,683.75,682.21,0.97216576]
[1752596978206,0.97333496,683.74,682.21,0.97216576]
[1752596978606,0.97333496,683.73,682.22,0.97216576]
[1752596980408,0.97333496,683.72,682.22,0.97216576]
[1752596980604,0.97333496,683.73,682.23,0.97216576]
[1752596980805,0.97333496,683.74,682.24,0.97216576]
[1752596981008,0.97333496,683.74,682.25,0.97216576]
[1752596981504,0.97333496,683.73,682.25,0.97216576]
[1752596982105,0.97333496,683.76,682.29,0.97216576]
[1752596982308,0.97333496,683.76,682.15,0.25465216]
[1752596982309,0.97333496,683.75,682.28,0.97216576]
[1752596982705,0.97333496,683.75,682.29,0.97216576]
[1752596983209,0.97333496,683.74,682.29,0.97216576]
[1752596983505,0.97333496,683.74,682.3,0.97216576]
[1752596984309,0.97333496,683.7,682.32,0.97216576]
[1752596985409,0.97333496,683.73,682.31,0.97216576]
[1752596986310,0.97333496,683.7,682.3,0.97216576]
[1752596986610,0.97333496,683.69,682.31,0.97216576]
[1752596987211,0.97333496,683.68,682.32,0.97216576]
[1752596988111,0.97333496,683.66,682.33,0.97216576]
[1752596988309,0.97333496,683.66,682.34,0.97216576]
[1752596989314,0.97333496,683.66,682.35,0.97216576]
[1752596989510,0.97333496,683.65,682.35,0.97216576]
[1752596989917,0.97333496,683.69,682.33,0.97216576]
[1752596990116,0.97333496,683.68,682.34,0.97216576]
[1752596991017,0.97333496,683.65,682.36,0.97216576]
[1752596991217,0.97333496,683.64,682.37,0.97216576]
[1752596991419,0.97333496,683.7,682.43,0.97216576]
[1752596991920,1.9691084,684.03,682.43,0.97216576]
[1752596991921,0.97333496,683.69,682.43,0.97216576]
[1752596992121,0.97333496,683.68,682.45,0.97216576]
[1752596992322,0.97333496,683.74,682.51,0.97216576]
[1752596993121,1.3127389,683.91,682.51,0.97216576]
[1752596993122,0.97333496,683.73,682.51,0.97216576]
[1752596993322,0.97333496,683.73,682.53,0.97216576]
[1752596994318,0.97333496,683.71,682.55,0.97216576]
[1752596995121,0.97333496,683.7,682.57,0.97216576]
[1752596995518,0.97333496,683.7,682.58,0.97216576]
[1752596996121,0.97333496,683.68,682.6,0.97216576]
[1752596997124,0.97333496,683.66,682.63,0.97216576]
[1752596998225,0.97333496,683.65,682.66,0.97216576]
[1752596998425,0.97333496,683.64,682.66,0.97216576]
[1752596999125,0.25442409,684.33,682.67,0.97216576]
[1752596999126,0.97333496,683.65,682.67,0.97216576]
[1752596999523,0.97333496,683.63,682.68,0.97216576]
[1752596999923,0.97333496,683.57,682.62,0.97216576]
[1752597000122,0.97333496,683.56,682.63,0.97216576]
[1752597000422,0.97333496,683.56,682.62,0.97216576]
[1752597000622,0.97333496,683.57,682.63,0.97216576]
[1752597000823,0.97333496,683.57,682.62,0.97216576]
[1752597001527,0.97333496,683.58,682.67,0.97216576]
[1752597001824,0.97333496,683.6,682.7,0.97216576]
[1752597002327,0.97333496,683.51,682.77,0.97216576]
[1752597003529,0.97333496,683.49,682.8,0.97216576]
[1752597004526,0.97333496,683.48,682.82,0.97216576]
[1752597006828,0.97333496,683.48,682.83,0.97216576]
[1752597007828,0.97333496,683.47,682.83,0.97216576]
[1752597008632,0.97333496,683.46,682.84,0.97216576]
[1752597010331,0.97333496,683.45,682.85,0.97216576]
[1752597010732,0.25442409,684.33,682.15,0.25465216]
[1752597010733,0.97333496,683.44,682.86,0.97216576]
[1752597015937,0.97333496,683.43,682.86,0.97216576]
[1752597016336,0.97333496,683.44,682.86,0.97216576]
[1752597017638,0.97333496,683.45,682.85,0.97216576]
[1752597017933,0.97333496,683.45,682.86,0.97216576]
[1752597018436,0.97333496,683.45,682.85,0.97216576]
[1752597021840,0.97333496,683.46,682.85,0.97216576]
[1752597022139,1.3127389,683.58,682.61,1.9572389]
[1752597022140,0.97333496,683.51,682.88,0.97216576]
[1752597022340,0.97333496,683.55,682.93,0.97216576]
[1752597022541,0.97333496,683.58,682.96,0.97216576]
[1752597023241,0.97333496,683.59,682.97,0.97216576]
[1752597023442,0.97333496,683.59,682.46,0.25467545]
[1752597023443,0.97333496,683.61,682.98,0.97216576]
[1752597024342,0.97333496,683.62,682.97,0.97216576]
[1752597026645,0.97333496,683.62,682.96,0.97216576]
[1752597026941,0.97333496,683.61,682.96,0.97216576]
[1752597027343,0.97333496,683.62,682.96,0.97216576]
[1752597028244,0.97333496,683.6,682.97,0.97216576]
[1752597028747,0.97333496,683.61,682.97,0.97216576]
[1752597029246,0.97333496,683.64,682.95,0.97216576]
[1752597029744,0.97333496,683.63,682.95,0.97216576]
[1752597030250,0.97333496,683.63,682.96,0.97216576]
[1752597030747,0.97333496,683.62,682.96,0.97216576]
[1752597030947,0.97333496,683.61,682.97,0.97216576]
[1752597031146,0.97333496,683.6,682.98,0.97216576]
[1752597031351,0.97333496,683.59,682.98,0.97216576]
[1752597032047,0.97333496,683.64,682.95,0.97216576]
[1752597032747,0.97333496,683.65,682.95,0.97216576]
[1752597033247,0.97333496,683.65,682.94,0.97216576]
[1752597033449,0.97333496,683.65,682.95,0.97216576]
[1752597033748,0.25442409,684.33,682.98,0.97216576]
[1752597033749,0.97333496,683.6,682.98,0.97216576]
[1752597035350,0.97333496,683.59,682.99,0.97216576]
[1752597036449,0.97333496,683.62,682.98,0.97216576]
[1752597036653,0.97333496,683.62,682.97,0.97216576]
[1752597039049,0.97333496,683.65,683.0,0.97216576]
[1752597040254,0.97333496,683.66,683.01,0.97216576]
[1752597040554,0.97333496,683.66,683.0,0.97216576]
[1752597040754,0.25442409,684.33,683.0,0.97216576]
[1752597040755,0.97333496,683.67,683.0,0.97216576]
[1752597041451,0.97333496,683.64,683.02,0.97216576]
[1752597041854,0.97333496,683.67,683.05,0.97216576]
[1752597042552,0.97333496,683.67,682.92,1.3048259]
[1752597042553,0.97333496,683.71,683.08,0.97216576]
[1752597042754,0.97333496,683.74,683.08,0.97216576]
[1752597042955,0.97333496,683.75,683.1,0.97216576]
[1752597043155,0.97333496,683.79,683.14,0.97216576]
[1752597043453,0.97333496,683.82,683.12,0.97216576]
[1752597043957,0.97333496,683.85,683.16,0.97216576]
[1752597044354,0.97333496,683.85,683.15,0.97216576]
[1752597044658,0.97333496,683.88,683.19,0.97216576]
[1752597045558,0.97333496,683.89,683.2,0.97216576]
[1752597045859,0.97333496,683.92,683.2,0.97216576]
[1752597046361,0.97333496,683.95,683.19,0.97216576]
[1752597046757,0.97333496,683.94,683.19,0.97216576]
[1752597046960,0.97333496,683.96,683.22,0.97216576]
[1752597047460,0.97333496,683.97,683.21,0.97216576]
[1752597047756,0.97333496,683.98,683.21,0.97216576]
[1752597047955,0.97333496,684.02,683.26,0.97216576]
[1752597048257,0.97333496,684.01,683.27,0.97216576]
[1752597048460,0.97333496,684.02,683.25,0.97216576]
[1752597049361,0.97333496,684.03,683.24,0.97216576]
[1752597049865,0.97333496,684.05,683.23,0.97216576]
[1752597050059,0.97333496,684.04,683.24,0.97216576]
[1752597050563,0.97333496,684.05,683.23,0.97216576]
[1752597051264,0.97333496,684.1,683.26,0.97216576]
[1752597051561,0.97333496,684.1,682.46,3.51674035]
[1752597051562,0.97333496,684.12,683.25,0.97216576]
[1752597051964,0.97333496,684.13,683.25,0.97216576]
[1752597052465,0.97333496,684.18,683.27,0.97216576]
[1752597052864,0.97333496,684.21,683.3,0.97216576]
[1752597053361,0.97333496,684.23,683.3,0.97216576]
[1752597053572,0.97333496,684.24,683.32,0.97216576]
[1752597054362,0.97333496,684.26,683.31,0.97216576]
[1752597054565,0.97333496,684.26,683.3,0.97216576]
[1752597055562,0.25442409,684.33,683.36,0.97216576]
[1752597056263,0.25442409,684.33,683.34,0.97216576]
[1752597057270,0.25442409,684.33,683.33,0.97216576]
[1752597058270,0.25442409,684.33,683.34,0.97216576]
[1752597058572,0.25442409,684.33,683.32,0.97216576]
[1752597058771,0.97333496,684.41,683.32,0.97216576]
[1752597058973,0.25438968,684.41,683.35,0.97216576]
[1752597059470,0.25438968,684.41,683.34,0.97216576]
[1752597061376,0.25438968,684.41,683.33,0.97216576]
[1752597061677,0.25438968,684.41,683.32,0.97216576]
[1752597061872,0.25438968,684.41,683.3,0.97216576]
[1752597062274,0.25438968,684.41,683.29,0.97216576]
[1752597062674,0.25438968,684.41,683.28,0.97216576]
[1752597062878,0.25438968,684.41,683.34,0.97216576]
[1752597063074,0.25438968,684.41,683.33,0.97216576]
[1752597063377,0.25438968,684.41,683.32,0.97216576]
[1752597064378,0.25438968,684.41,683.31,0.97216576]
[1752597064678,0.97333496,684.67,683.35,0.97216576]
[1752597064978,0.25434878,684.53,683.35,0.97216576]
[1752597065473,0.25434878,684.53,683.34,0.97216576]
[1752597065979,0.25434878,684.53,683.33,0.97216576]
[1752597066179,0.25434878,684.53,683.32,0.97216576]
[1752597066675,0.25434878,684.53,683.33,0.97216576]
[1752597066879,0.25434878,684.53,683.34,0.97216576]
[1752597067179,0.25434878,684.53,683.32,0.97216576]
[1752597067674,0.25434878,684.53,683.33,0.97216576]
[1752597068279,0.25434878,684.53,683.32,0.97216576]
[1752597068575,0.25434878,684.53,683.33,0.97216576]
[1752597069376,0.25434878,684.53,683.32,0.97216576]
[1752597070281,0.25434878,684.53,683.31,0.97216576]
[1752597070778,0.25434878,684.53,683.32,0.97216576]
[1752597071477,0.25434878,684.53,683.33,0.97216576]
[1752597072182,0.25434878,684.53,683.32,0.97216576]
[1752597074783,0.25434878,684.53,683.21,1.3048259]
[1752597074984,0.25434878,684.53,683.33,0.96858549]
[1752597075383,0.25434878,684.53,683.34,0.96858549]
[1752597075985,0.25434878,684.53,683.36,0.96858549]
[1752597076185,0.9726816,684.75,683.33,0.96858549]
[1752597076485,0.2543116,684.66,683.33,0.96858549]
[1752597078792,0.2543116,684.66,683.43,0.96858549]
[1752597079186,0.2543116,684.66,683.42,0.96858549]
[1752597079487,0.2543116,684.66,683.44,0.96858549]
[1752597080088,0.2543116,684.66,683.46,0.96858549]
[1752597080289,0.2543116,684.66,683.45,0.96858549]
[1752597080491,0.2543116,684.66,683.46,0.96858549]
[1752597080989,0.2543116,684.66,683.47,0.96858549]
[1752597081190,0.2543116,684.66,683.46,0.96858549]
[1752597081393,0.2543116,684.66,683.47,0.96858549]
[1752597082389,0.2543116,684.66,683.45,0.96858549]
[1752597082994,0.2543116,684.66,683.44,0.96858549]
[1752597083188,0.2543116,684.66,683.42,0.96858549]
[1752597083590,0.2543116,684.66,683.43,0.96858549]
[1752597083991,0.2543116,684.66,683.42,0.96776541]
[1752597084190,0.2543116,684.66,683.41,0.96776541]
[1752597084393,0.2543116,684.66,683.4,0.96776541]
[1752597084995,0.2543116,684.66,683.39,0.96776541]
[1752597085992,0.2543116,684.66,683.38,0.96776541]
[1752597086194,0.2543116,684.66,683.36,0.96776541]
[1752597086695,0.2543116,684.66,683.34,0.96776541]
[1752597086894,0.2543116,684.66,683.32,0.96776541]
[1752597087092,0.2543116,684.66,683.27,0.96776541]
[1752597087491,0.2543116,684.66,683.28,0.96776541]
[1752597087996,0.2543116,684.66,683.24,0.96776541]
[1752597088293,0.2543116,684.66,683.25,0.96776541]
[1752597090396,0.2543116,684.66,683.26,0.96776541]
[1752597091196,0.2543116,684.66,683.27,0.96776541]
[1752597091592,0.2543116,684.66,683.28,0.96776541]
[1752597092594,0.2543116,684.66,683.29,0.96776541]
[1752597092898,0.2543116,684.66,683.3,0.96776541]
[1752597093395,0.2543116,684.66,683.31,0.96776541]
[1752597093594,0.2543116,684.66,683.32,0.96776541]
[1752597093799,0.2543116,684.66,683.33,0.96776541]
[1752597094400,0.97220188,684.65,683.35,0.96776541]
[1752597094999,0.97220188,684.62,683.37,0.96776541]
[1752597095200,0.97220188,684.61,683.38,0.96776541]
[1752597095400,0.97220188,684.6,683.39,0.96776541]
[1752597096396,1.22651348,684.66,683.43,0.96776541]
[1752597096601,0.2543116,684.66,683.45,0.96776541]
[1752597097300,1.22651348,684.66,683.47,0.96776541]
[1752597097501,1.22651348,684.66,683.32,1.3048259]
[1752597097502,0.2543116,684.66,683.46,0.96776541]
[1752597098202,0.2543116,684.66,683.47,0.96776541]
[1752597098596,0.97220188,684.65,683.48,0.96776541]
[1752597098799,0.97220188,684.65,683.49,0.96776541]
[1752597099300,0.97220188,684.64,683.51,0.96776541]
[1752597100303,0.97220188,684.62,683.53,0.96776541]
[1752597101208,0.97220188,684.61,683.52,0.96776541]
[1752597101504,0.97220188,684.55,683.47,0.96776541]
[1752597102500,0.97220188,684.53,683.5,0.96776541]
[1752597103306,0.97220188,684.52,683.52,0.96776541]
[1752597104207,0.97220188,684.54,683.51,0.96776541]
[1752597104503,0.97220188,684.54,683.56,0.96776541]
[1752597105601,0.97220188,684.53,683.58,0.96776541]
[1752597106504,0.2543116,684.66,682.61,3.2620649]
[1752597106505,0.97220188,684.52,683.6,0.96776541]
[1752597107703,0.97220188,684.5,683.61,0.96776541]
[1752597107905,0.97220188,684.51,683.61,0.96776541]
[1752597108208,0.97220188,684.5,683.61,0.96776541]
[1752597108407,0.97220188,684.5,683.63,0.96776541]
[1752597108605,0.97220188,684.51,683.64,0.96776541]
[1752597108808,0.97220188,684.5,683.65,0.96776541]
[1752597109003,0.97220188,684.52,683.67,0.96776541]
[1752597109304,0.97220188,684.52,683.7,0.96776541]
[1752597110308,0.97220188,684.51,683.71,0.96776541]
[1752597110508,0.97220188,684.5,683.72,0.96776541]
[1752597111405,0.97220188,684.48,683.74,0.96776541]
[1752597111606,0.97220188,684.43,683.77,0.96776541]
[1752597112505,0.97220188,684.42,683.79,0.96776541]
[1752597113210,0.97220188,684.42,683.8,0.96776541]
[1752597113408,0.97220188,684.42,683.81,0.96776541]
[1752597114012,0.97220188,684.44,683.8,0.96776541]
[1752597114207,0.97220188,684.43,683.8,0.96776541]
[1752597114511,0.97220188,684.43,683.81,0.96776541]
[1752597114712,0.97220188,684.42,683.81,0.96776541]
[1752597115213,0.97220188,684.42,683.82,0.96776541]
[1752597115414,0.97220188,684.45,683.85,0.96776541]
[1752597115612,0.97220188,684.45,683.73,1.3048259]
[1752597115613,0.97220188,684.44,683.86,0.96776541]
[1752597116115,0.97220188,684.48,683.9,0.96776541]
[1752597117217,0.97220188,684.49,683.9,0.96776541]
[1752597118515,0.97220188,684.48,683.91,0.96776541]
[1752597120317,0.97220188,684.47,683.91,0.96776541]
[1752597121213,0.97220188,684.47,683.92,0.96776541]
[1752597121716,0.97220188,684.53,683.97,0.96776541]
[1752597122214,0.97220188,684.55,684.0,0.96776541]
[1752597122416,0.97220188,684.56,683.99,0.96776541]
[1752597123315,0.97220188,684.6,683.96,0.96776541]
[1752597123517,0.97220188,684.61,683.95,0.96776541]
[1752597124618,0.97220188,684.63,683.97,0.96776541]
[1752597125618,0.97220188,684.64,683.97,0.96776541]
[1752597126418,0.97220188,684.64,683.96,0.96776541]
[1752597126619,0.97220188,684.65,683.96,0.96776541]
[1752597128018,0.97220188,684.66,683.95,0.96776541]
[1752597128518,0.97220188,684.67,683.94,0.96776541]
[1752597129017,0.25424843,684.77,682.69,4.5668909]
[1752597129018,0.97220188,684.7,683.93,0.96776541]
[1752597129319,0.97220188,684.68,683.94,0.96776541]
[1752597130016,0.97220188,684.68,683.95,0.96776541]
[1752597130420,0.97220188,684.68,683.94,0.96776541]
[1752597131120,0.97220188,684.76,684.0,0.96776541]
[1752597131314,0.97220188,684.8,684.0,0.96776541]
[1752597131520,0.97220188,684.81,683.97,0.96776541]
[1752597131922,0.97220188,684.84,684.0,0.96776541]
[1752597132418,0.97220188,684.9,684.02,0.96776541]
[1752597132616,0.25417694,685.05,684.03,0.96776541]
[1752597132617,0.97220188,684.91,684.03,0.96776541]
[1752597132818,0.97220188,684.93,684.05,0.96776541]
[1752597133217,0.97220188,684.95,684.07,0.96776541]
[1752597133423,0.97220188,684.96,684.06,0.96776541]
[1752597134323,0.97220188,684.95,684.05,0.96776541]
[1752597134618,0.97220188,684.95,683.69,1.9572389]
[1752597134619,0.97220188,685.0,684.1,0.96776541]
[1752597134819,1.22637882,685.05,684.15,0.96776541]
[1752597135416,0.25417694,685.05,684.13,0.96776541]
[1752597135622,0.97220188,684.99,684.17,0.96776541]
[1752597136322,0.97220188,685.0,684.16,0.96776541]
[1752597136522,0.97220188,685.04,684.12,0.96776541]
[1752597136821,0.97220188,685.03,684.13,0.96776541]
[1752597137224,0.97220188,685.02,684.13,0.96776541]
[1752597137422,0.97220188,685.04,684.11,0.96776541]
[1752597137926,0.25417694,685.05,684.09,0.96776541]
[1752597138421,0.25417694,685.05,684.08,0.96776541]
[1752597139422,0.25417694,685.05,684.06,0.96776541]
[1752597139822,0.25417694,685.05,683.87,1.3048259]
[1752597139823,0.25417694,685.05,684.05,0.96776541]
[1752597140523,0.25417694,685.05,684.04,0.96776541]
[1752597140928,0.25417694,685.05,684.05,0.96776541]
[1752597141424,0.25417694,685.05,684.02,0.96776541]
[1752597141627,0.25417694,685.05,684.04,0.96776541]
[1752597142424,0.97220188,685.04,684.01,0.96776541]
[1752597142622,1.22637882,685.05,684.0,0.96776541]
[1752597142826,0.97220188,685.02,683.98,0.96776541]
[1752597143023,0.97220188,685.0,684.0,0.96776541]
[1752597143225,0.97220188,685.0,683.99,0.96776541]
[1752597143524,0.25417694,685.05,683.99,0.96776541]
[1752597143525,0.97220188,685.01,683.99,0.96776541]
[1752597144428,0.97220188,684.99,683.99,0.96776541]
[1752597144622,0.97220188,685.01,683.98,0.96776541]
[1752597145028,0.97220188,685.0,683.98,0.96776541]
[1752597145324,0.97220188,684.96,683.93,0.96776541]
[1752597145624,0.97220188,684.93,683.9,0.96776541]
[1752597145829,0.97220188,684.92,683.88,0.96776541]
[1752597146028,0.97220188,684.91,683.88,0.96776541]
[1752597146225,0.97220188,684.92,683.88,0.96776541]
[1752597146429,0.97220188,684.91,683.88,0.96776541]
[1752597147029,0.97220188,684.92,683.88,0.96776541]
[1752597149330,0.97220188,684.91,683.88,0.96776541]
[1752597150329,0.97220188,684.91,683.89,0.96776541]
[1752597152829,0.97220188,684.93,683.9,0.96776541]
[1752597153034,0.97220188,684.9,683.92,0.96776541]
[1752597153330,0.97220188,684.93,683.95,0.96776541]
[1752597155237,0.97220188,684.92,683.96,0.96776541]
[1752597155938,0.97220188,684.92,683.95,0.96776541]
[1752597156134,0.97220188,684.9,683.93,0.96776541]
[1752597156438,0.97220188,684.84,683.84,0.96776541]
[1752597156634,0.97220188,684.83,683.85,0.96776541]
[1752597156938,0.97220188,684.82,683.85,0.96776541]
[1752597157334,0.97220188,684.83,683.85,0.96776541]
[1752597157538,0.97220188,684.82,683.85,0.96776541]
[1752597157937,0.97220188,684.85,683.84,0.96776541]
[1752597158135,0.97220188,684.84,683.84,0.96776541]
[1752597158638,0.97220188,684.83,683.85,0.96776541]
[1752597159534,0.97220188,684.85,683.84,0.96776541]
[1752597160538,0.97220188,684.84,683.82,0.96776541]
[1752597161140,0.97220188,684.84,683.66,1.3048259]
[1752597161141,0.97220188,684.83,683.81,0.96776541]
[1752597161440,0.97220188,684.83,683.82,0.96776541]
[1752597161637,0.97220188,684.83,683.48,1.9572389]
[1752597161638,0.97220188,684.81,683.8,0.96776541]
[1752597162140,0.97220188,684.81,683.79,0.96776541]
[1752597162340,0.97220188,684.81,683.8,0.96776541]
[1752597163239,0.97220188,684.8,683.8,0.96776541]
[1752597163442,0.97220188,684.8,683.81,0.96776541]
[1752597164243,0.97220188,684.8,683.82,0.96776541]
[1752597165444,0.97220188,684.8,683.83,0.96776541]
[1752597166245,0.97220188,684.79,683.83,0.96776541]
[1752597167041,0.97220188,684.77,683.85,0.96776541]
[1752597167443,0.97220188,684.77,683.86,0.96776541]
[1752597168244,0.97220188,684.76,683.86,0.96776541]
[1752597168447,0.97220188,684.76,683.87,0.96776541]
[1752597169244,0.97220188,684.73,683.89,0.96776541]
[1752597169944,0.97220188,684.72,683.89,0.96776541]
[1752597170148,0.97220188,684.72,683.88,0.96776541]
[1752597170345,0.97220188,684.72,682.73,4.5668909]
[1752597170346,0.97220188,684.72,683.89,0.96776541]
[1752597170550,0.97220188,684.71,683.89,0.96776541]
[1752597170849,0.97220188,684.7,683.91,0.96776541]
[1752597171350,0.97220188,684.69,683.91,0.96776541]
[1752597171848,0.97220188,684.67,683.93,0.96776541]
[1752597172252,0.97220188,684.66,683.93,0.96776541]
[1752597172452,0.97220188,684.66,683.94,0.96776541]
[1752597172951,0.97220188,684.7,683.91,0.96776541]
[1752597173250,0.97220188,684.7,683.92,0.96776541]
[1752597174253,0.97220188,684.69,683.93,0.96776541]
[1752597174550,0.97220188,684.68,683.93,0.96776541]
[1752597174750,0.97220188,684.69,683.93,0.96776541]
[1752597175250,0.97220188,684.68,683.94,0.96776541]
[1752597177256,0.97220188,684.68,683.95,0.96776541]
[1752597178357,0.97220188,684.68,683.96,0.96776541]
[1752597180957,0.97220188,684.63,683.91,0.96776541]
[1752597181553,0.25417694,685.05,683.91,0.96776541]
[1752597181554,0.97220188,684.61,683.91,0.96776541]
[1752597182860,0.97220188,684.59,683.93,0.96776541]
[1752597184862,0.97220188,684.58,683.93,0.96776541]
[1752597185964,0.97220188,684.61,683.96,0.96776541]
[1752597186160,0.97220188,684.62,683.96,0.96776541]
[1752597186863,0.97220188,684.62,683.95,0.96776541]
[1752597187363,0.97220188,684.64,683.97,0.96776541]
[1752597187664,0.97220188,684.63,683.97,0.96776541]
[1752597187861,0.97220188,684.64,683.97,0.96776541]
[1752597188060,0.97220188,684.69,683.97,0.96776541]
[1752597190463,0.97220188,684.7,683.97,0.96776541]
[1752597192069,0.97220188,684.71,683.99,0.96776541]
[1752597192364,0.97220188,684.85,684.01,0.96776541]
[1752597192570,0.97220188,684.86,684.01,0.96776541]
[1752597193066,0.97220188,684.84,684.0,0.96776541]
[1752597194572,0.97220188,684.86,684.02,0.96776541]
[1752597194874,0.97220188,684.85,684.03,0.96776541]
[1752597195368,0.97220188,684.84,684.03,0.96776541]
[1752597196568,0.97220188,684.84,684.04,0.96776541]
[1752597197373,0.97220188,684.83,684.05,0.96776541]
[1752597198067,0.97220188,684.85,684.04,0.96776541]
[1752597198472,0.97220188,684.84,684.05,0.96776541]
[1752597199473,0.97220188,684.83,684.05,0.96776541]
[1752597200471,0.97220188,684.83,684.06,0.96776541]
[1752597201374,0.97220188,684.82,684.07,0.96776541]
[1752597201774,0.97220188,684.79,684.09,0.96776541]
[1752597201973,0.97220188,684.78,684.1,0.96776541]
[1752597202572,0.97220188,684.77,684.11,0.96776541]
[1752597203675,0.97220188,684.75,684.12,0.96776541]
[1752597204275,0.97220188,684.77,684.11,0.96776541]
[1752597204476,0.97220188,684.78,684.11,0.96776541]
[1752597204978,0.97220188,684.77,684.11,0.96776541]
[1752597205176,0.97220188,684.8,684.09,0.96776541]
[1752597207579,0.97220188,684.82,684.08,0.96776541]
[1752597207775,0.97220188,684.8,684.07,0.96776541]
[1752597208479,0.97220188,684.78,684.05,0.96776541]
[1752597208979,0.97220188,684.79,684.05,0.96776541]
[1752597209376,0.97220188,684.78,684.05,0.96776541]
[1752597209574,0.97220188,684.79,684.05,0.96776541]
[1752597209778,0.97220188,684.77,684.02,0.96776541]
[1752597210476,0.97220188,684.77,684.03,0.96776541]
[1752597211679,0.97220188,684.77,684.02,0.96776541]
[1752597212181,0.97220188,684.77,683.83,1.3048259]
[1752597212182,0.97220188,684.77,684.03,0.96776541]
[1752597212978,0.97220188,684.8,684.06,0.96776541]
[1752597213679,0.97220188,684.78,684.07,0.96776541]
[1752597213884,0.97220188,684.8,684.09,0.96776541]
[1752597214383,0.97220188,684.82,684.12,0.96776541]
[1752597214786,0.97220188,684.8,684.13,0.96776541]
[1752597215886,0.97220188,684.8,684.14,0.96776541]
[1752597216386,0.97220188,684.8,684.13,0.96776541]